Cogmind - Beta 15 @@@ ROGUE MODE // 2025.08.29 @ 10:28:33 Player: Reflectatory Result: Destroyed by UC-FZO(R) with Subdweller Laser Performance ------------- Evolutions (0) 0 Regions Visited (3) 600 Robots Destroyed (2) 10 Value Destroyed (80) 80 Prototype IDs (1) 20 Alien Tech Used (0) 0 Bonus (0) 0 TOTAL SCORE: 710 Bonus ------- None Cogmind --------- Core Integrity 0/250 Matter 263/300 Energy 170/170 System Corruption 0% Temperature Cool (6) Movement Core (150) Ox2 Location -10/Subcaves Parts ------- > --- POWER (1) -------- Makeshift Power Source > --- PROPULSION (2) --- (None) > --- UTILITY (2) ------ Experimental Sensor Array Signal Interpreter > --- WEAPON (2) ------- Subdweller Laser > --- INVENTORY (5) ---- Subdweller Power Source Subdweller Power Source Subdweller Optics Makeshift Hacking Suite Subdweller Machine Gun Peak State ------------ > --- POWER ------------ Ion Engine > --- PROPULSION ------- Aluminum Leg Aluminum Leg > --- UTILITY ---------- Experimental Sensor Array Signal Interpreter > --- WEAPON ----------- Plasma Flamer Makeshift Hammer > --- INVENTORY -------- Subdweller Power Source Subdweller Power Source Makeshift Hacking Suite Subdweller Laser Subdweller Machine Gun [Rating: 23] Favorites ----------- Power Ion Engine Engine Ion Engine Propulsion Aluminum Leg Leg Aluminum Leg Utility Signal Interpreter Device Experimental Sensor Array Processor Signal Interpreter Weapon Small Laser Energy Gun Small Laser Special Weapon Plasma Flamer Impact Weapon Makeshift Hammer Build | -11 -10 -10 -10 ------- Run | Yrd Mat Min Sub Slots Evolved . | . . . . Power . | . . . . Propulsion . | . . . . Utility . | . . . . Weapon . | . . . . Parts Attached 14 | 5 1 2 6 Power 5 | 1 . . 4 Engine 5 | 1 . . 4 Core . | . . . . Reactor . | . . . . Propulsion 2 | 2 . . . Treads . | . . . . Leg 2 | 2 . . . Wheel . | . . . . Hover . | . . . . Flight . | . . . . Utility 2 | . 1 1 . Device 1 | . . 1 . Storage . | . . . . Processor 1 | . 1 . . Hackware . | . . . . Protection . | . . . . Artifact . | . . . . Weapon 5 | 2 . 1 2 Energy Gun 3 | 2 . . 1 Energy Cannon . | . . . . Ballistic Gun . | . . . . Ballistic Cannon . | . . . . Launcher . | . . . . Special Weapon 1 | . . 1 . Impact Weapon 1 | . . . 1 Slashing Weapon . | . . . . Piercing Weapon . | . . . . Special Melee Weapon . | . . . . Unidentified Prototypes 1 | . . 1 . Parts Lost 5 | . . . 5 Power 1 | . . . 1 Propulsion 2 | . . . 2 Utility . | . . . . Weapon 2 | . . . 2 Highest Loss Streak 4 | . . . 4 To Critical Strikes . | . . . . Average Backups 3 | 1 2 2 4 Power 1 | . 1 1 1 Propulsion . | . . . . Utility . | . . . 1 Weapon 1 | . 1 1 1 Tool/Special . | . . . . Unused Backups 5 | . . . 5 Power 1 | . . . 1 Propulsion . | . . . . Utility 2 | . . . 2 Weapon 2 | . . . 2 Tool/Special . | . . . . Average Slot Usage (%) 85 | . 78 98 80 Engine 13 | . 14 14 13 Leg 16 | . 28 28 9 Device 12 | . . 12 14 Processor 13 | . 7 14 14 Energy Gun 14 | . 28 17 12 Special Weapon 6 | . . 10 4 Impact Weapon 6 | . . . 10 Peak Build Rating 23 | 5 6 19 23 Average Rating 17 | 4 5 17 19 On Entrance 7 | . 5 6 19 Naked Turns . | . . . . Heaviest Build 13 | 8 8 10 13 Greatest Support 20 | 20 20 20 20 Greatest Overweight (x) 4 | . . . 4 Average Overweight (x) 1 | . . . 2 Largest Inventory Capacity 5 | 5 5 5 5 Average Capacity 5 | 5 5 5 5 Most Carried 5 | 2 2 2 5 Average Carried 3 | 1 2 2 4 Final Capacity 5 | 5 5 5 5 Final Carried 5 | 2 2 2 5 Class Distribution -------------------- 100% | Mutant Dominant Class ---------------- Mutant | -10/Materials Mutant | -10/Mines Mutant | -10/Subcaves Resources | -11 -10 -10 -10 ----------- Run | Yrd Mat Min Sub Matter Collected 298 | 250 . 30 18 Remotely . | . . . . Salvage Created 59 | . . . 59 Parts 2 | . . . 2 Haulers Intercepted . | . . . . Recyclers Shooed . | . . . . Parts Field Recycled . | . . . . Retrieved Matter . | . . . . Parts Self-Destructed . | . . . . Prevented . | . . . . Kills | -11 -10 -10 -10 ------- Run | Yrd Mat Min Sub Combat Hostiles Destroyed 2 | . . . 2 Melee 1 | . . . 1 Classes Destroyed 1 | . . . 1 Subdweller 2 | . . . 2 Best Kill Streak 2 | . . . 2 Combat Bots Only 2 | . . . 2 Max Kills in Single Turn 1 | . . . 1 Gunslinging . | . . . . Exploded . | . . . . Melee 1 | . . . 1 Uniques/NPCs Destroyed . | . . . . Combat | -11 -10 -10 -10 -------- Run | Yrd Mat Min Sub Hostile Shots Fired 64 | . 30 . 34 Missed 20 | . 12 . 8 Hits 44 | . 18 . 26 Projectile 44 | . 18 . 26 Critical Strikes 1 | . 1 . . Damage Taken 800 | . 163 . 637 Core 250 | . 45 . 205 Absorbed by Shields . | . . . . Core Remaining (%) 100 | 100 . . . Volleys Fired . | . . . . Largest . | . . . . Hottest . | . . . . Shots Fired . | . . . . Gun . | . . . . Cannon . | . . . . Launcher . | . . . . Special . | . . . . Kinetic . | . . . . Thermal . | . . . . Explosive . | . . . . Electromagnetic . | . . . . Robot Hit Streak . | . . . . Robot Miss Streak . | . . . . Penetration Max . | . . . . Secondary Targets . | . . . . Shots Hit Robots 13 | . . . 13 Core Hits 1 | . . . 1 Critical Kills 1 | . . . 1 Critical Parts Destroyed . | . . . . Critical Strikes 1 | . . . 1 Smash 1 | . . . 1 Melee Attacks 22 | . . . 22 Impact 22 | . . . 22 Slashing . | . . . . Piercing . | . . . . Sneak Attacks . | . . . . Combat Hostiles . | . . . . Follow-up Attacks . | . . . . Damage Inflicted 381 | . . 1 380 Guns . | . . . . Cannons . | . . . . Explosions . | . . . . Melee 380 | . . . 380 Ramming 1 | . . 1 . Kinetic . | . . . . Thermal . | . . . . Explosive . | . . . . Electromagnetic . | . . . . Impact 380 | . . . 380 Slashing . | . . . . Piercing . | . . . . Highest Corruption . | . . . . Average Corruption . | . . . . Corruption Purged . | . . . . Corruption Blocked . | . . . . Overload Shots . | . . . . Overflow Damage 41 | . . . 41 Projectiles . | . . . . Explosions . | . . . . Melee 41 | . . . 41 Knockbacks 1 | . . . 1 Impact 1 | . . . 1 Kinetic . | . . . . Secondary . | . . . . Self-Inflicted Damage . | . . . . Shots . | . . . . Rammed . | . . . . Targets Rammed 1 | . . 1 . Kicked 1 | . . 1 . Crushed . | . . . . Highest Temperature . | . . . . Average Temperature . | . . . . Received Heat Transfer 219 | . 18 . 201 Siege Activations . | . . . . Martial Activations . | . . . . Shielding Activations . | . . . . Robots Disrupted . | . . . . Combat Hostiles . | . . . . Robots Corrupted 1 | . . . 1 Combat Hostiles 1 | . . . 1 Parts Fried 1 | . . . 1 Impact Corruptions 2 | . . . 2 Robots Melted . | . . . . Combat Hostiles . | . . . . Parts Melted . | . . . . Heat Transferred . | . . . . Parts Sabotaged . | . . . . Parts Stolen . | . . . . Parts Stripped . | . . . . Power Chain Reactions . | . . . . Alert | -11 -10 -10 -10 ------- Run | Yrd Mat Min Sub Maximum Alert Level . | . . . . Low Security (%) 100 | 100 100 100 . Level 1 . | . . . . Level 2 . | . . . . Level 3 . | . . . . Level 4 . | . . . . Level 5 . | . . . . High Security . | . . . . Max Security . | . . . . Peak Influence 30 | . 30 3 . Initial 3 | . . 3 . Average . | . 4 . . Influence Increases 30 | . 30 . . Lose Combat Pursuer 30 | . 30 . . Influence Decreases 30 | . 20 10 . Entered New Map 7 | . . 7 . Time Decay 23 | . 20 3 . Squads Dispatched . | . . . . Investigation . | . . . . Extermination . | . . . . Reinforcement . | . . . . Assault . | . . . . Garrison . | . . . . Intercept . | . . . . Searches Triggered . | . . . . Construction Impeded . | . . . . Haulers Reinforced . | . . . . Active Scanning Responses . | . . . . Cargo Convoy Interrupts . | . . . . Stealth | -11 -10 -10 -10 --------- Run | Yrd Mat Min Sub Distress Signals 2 | . 2 . . Communications Jammed . | . . . . Distress Signals . | . . . . Times Spotted 10 | . 7 . 3 Peak Tracking Total 7 | . 7 . 2 Tactical Retreats 1 | . 1 . . Traps | -11 -10 -10 -10 ------- Run | Yrd Mat Min Sub Traps Triggered . | . . . . Indirectly . | . . . . Trap Hack Attempts . | . . . . Triggered . | . . . . Disarmed . | . . . . Reprogrammed . | . . . . Reused . | . . . . Traps Extracted . | . . . . Installed . | . . . . Triggered . | . . . . Machines | -11 -10 -10 -10 ---------- Run | Yrd Mat Min Sub Machines Disabled . | . . . . Max in Single Turn . | . . . . Machines Repaired . | . . . . Machines Dismantled . | . . . . Machines Sabotaged . | . . . . Overloaded Fab Kills . | . . . . Hacking | -11 -10 -10 -10 --------- Run | Yrd Mat Min Sub Machines Accessed 1 | . 1 . . Terminals 1 | . 1 . . Fabricators . | . . . . Repair Stations . | . . . . Recycling Units . | . . . . Scanalyzers . | . . . . Garrison Access . | . . . . Total Hacks 4 | . 4 . . Successful . | . . . . Failed 4 | . 4 . . Catastrophic . | . . . . Database Lockouts . | . . . . Manual 4 | . 4 . . Terminals 4 | . 4 . . Fabricators . | . . . . Repair Stations . | . . . . Recycling Units . | . . . . Scanalyzers . | . . . . Garrison Access . | . . . . Terminal Hacks . | . . . . Fabricator Hacks . | . . . . Repair Station Hacks . | . . . . Recycling Unit Hacks . | . . . . Scanalyzer . | . . . . Garrison Access Hacks . | . . . . Unauthorized Hacks . | . . . . Terminals . | . . . . Fabricators . | . . . . Repair Stations . | . . . . Recycling Units . | . . . . Scanalyzers . | . . . . Garrison Access . | . . . . Data Cores Recovered . | . . . . Used . | . . . . Hacking Detections 1 | . 1 . . Full Trace Events . | . . . . Feedback Events . | . . . . Feedback Blocked . | . . . . Robot Schematics Acquired . | . . . . Robots Built . | . . . . Authchips . | . . . . Time . | . . . . Total Robot Build Rating . | . . . . Part Schematics Acquired . | . . . . Parts Built . | . . . . Authchips . | . . . . Time . | . . . . Total Part Build Rating . | . . . . Parts Repaired . | . . . . Time . | . . . . Parts Recycled . | . . . . Recycled Matter . | . . . . Retrieved Matter . | . . . . Retrieved Components . | . . . . Parts Scanalyzed . | . . . . Part Schematics Acquired . | . . . . Parts Damaged . | . . . . Bothacking | -11 -10 -10 -10 ------------ Run | Yrd Mat Min Sub Used RIF Installer . | . . . . Robots Hacked . | . . . . Non-combat . | . . . . Combat . | . . . . Robot Hacks Applied . | . . . . Relay Couplers Released . | . . . . Fabnet Peak Effective % . | . . . . Robots Rewired . | . . . . Allies Hacked . | . . . . Hacks Repelled . | . . . . Allies | -11 -10 -10 -10 -------- Run | Yrd Mat Min Sub Total Allies . | . . . . Largest Group . | . . . . Highest-Rated Group . | . . . . Highest-Rated Ally . | . . . . Total Orders . | . . . . Ally Attacks . | . . . . Total Damage . | . . . . Kills . | . . . . Allies Corrupted . | . . . . Allies Melted . | . . . . Intel | -11 -10 -10 -10 ------- Run | Yrd Mat Min Sub Active Infowar (turns) 1968 | . . 592 1376 Sensors 1968 | . . 592 1376 Robot Analysis Total . | . . . . Derelict Logs Recovered 2 | . . 2 . Drone Launches . | . . . . Drone Recoveries . | . . . . Exploration | -11 -10 -10 -10 ------------- Run | Yrd Mat Min Sub Turns Passed 2168 | 47 120 625 1376 Spaces Moved 1273 | 34 99 508 632 Core 365 | 4 . . 361 Treads . | . . . . Legs 908 | 30 99 508 271 Wheels . | . . . . Hover . | . . . . Flight . | . . . . Fastest Speed 50 | 50 120 120 100 Average Speed 154 | 111 120 120 189 Slowest Speed 250 | 120 120 120 250 Overloaded Moves . | . . . . Propulsion Burnouts . | . . . . Robots Hopped . | . . . . Potential Cave-ins . | . . . . Cave-ins Triggered . | . . . . Exploration Rate (%) 37 | 3 29 75 43 Regions Visited 3 Branch Regions 2 Pre-discovered Areas 1 | . . 1 . Known Exits Taken 2 | . 1 1 . Unknown Exits Taken 1 | 1 . . . Scrap Searched 2 | . . 2 . Spaces Dug . | . . . . Terrain Destroyed . | . . . . Melee . | . . . . Projectile . | . . . . AOE . | . . . . Terrain Rammed . | . . . . Walls Destroyed . | . . . . Machines Disabled . | . . . . Actions | -11 -10 -10 -10 --------- Run | Yrd Mat Min Sub Total 1446 | 40 99 522 785 Wait 128 | . . 12 116 Move 1270 | 33 98 507 632 Hop . | . . . . Pick Up 9 | 2 . . 7 Fast Attach 7 | 5 1 1 . Attach 2 | . . . 2 Detach . | . . . . Swap 5 | . . 1 4 Drop 2 | . . . 2 Fire . | . . . . Melee 22 | . . . 22 Ram . | . . . . Kick 1 | . . 1 . Crush . | . . . . Escape Stasis . | . . . . Rewire . | . . . . Trap . | . . . . Miscellaneous . | . . . . Route ------- -11/Scrapyard -10/Materials -10/Mines -10/Subcaves (discovered 1 exit: *Mat) History --------- Turn | Location | Event 6 | -11/Scrapyard | Discovered new exit (range 15) 48 | -11/Scrapyard | Entered Materials 150 | -10/Materials | Discovered new exit (range 15) 166 | -10/Materials | Identified exit to Mines 168 | -10/Materials | Entered Mines 198 | -10/Mines | Found a damaged Exp. Sensor Array with a note attached 201 | -10/Mines | Found Prototype Device 201 | -10/Mines | Identified Exp. Sensor Array 246 | -10/Mines | Learned Materials security intel 288 | -10/Mines | A weapon hastily lodged in a ceiling crevice suddenly fell to the ground 311 | -10/Mines | Build established: Mutant 327 | -10/Mines | Learned location of Zion (-6) 575 | -10/Mines | Discovered new exit (range 6) 580 | -10/Mines | Identified exit to Subcaves 793 | -10/Mines | Entered Subcaves 794 | -10/Subcaves | Approached by a straggling Scientist 809 | -10/Subcaves | Shifting Twisted Machinery released Sub. Laser 816 | -10/Subcaves | Shifting Twisted Machinery released Mak. Light Armor Plating 828 | -10/Subcaves | Discovered new exit (range 7) 831 | -10/Subcaves | Shifting Twisted Machinery released Battle Rifle 845 | -10/Subcaves | Identified exit to Materials 974 | -10/Subcaves | Shifting Twisted Machinery released Mak. Hammer 974 | -10/Subcaves | Shifting Twisted Machinery released Sub. Power Source 1274 | -10/Subcaves | Core integrity fell below 50% 1280 | -10/Subcaves | Core integrity fell below 20% 1300 | -10/Subcaves | Lost 4 parts (1p2n1w) 2160 | -10/Subcaves | Disturbed a concealed Subdweller 2169 | -10/Subcaves | Destroyed by UC-FZO(R) with Subdweller Laser Last Messages --------------- E4-4UT(R) suffers critical hit (Smash). E4-4UT(R) destroyed. Destroyed Sub. Monowheel. R9-IX6(R) system corrupted by crushing effect. Destroyed Sub. Optics. R9-IX6(R) system corrupted by crushing effect. R9-IX6(R) system terminally corrupted. Sub. Power Source fried. Sub. Power Source shoots sparks and powers down. Acquired 8 matter. Subatomizers dissect the Cobbler Unit, destroying it. Acquired Sub. Power Source. Acquired Sub. Optics. Sub. Power Source shoots sparks and powers down. 1V-LLF(u) tweaks Twisted Machinery. Sub. Power Source shoots sparks and powers down. Acquired Mak. Power Source. UC-FZO(R): "SUB#$%&!" Mak. Hammer destroyed. Map ----- +----------------------------------------------------+ | """??????????????????????????????????????????????? | | ?????????????????????????????????????????????????? | | ?????????????????????????????????????????????????? | | ???????????????????????????????????????????????? | | ?????????????????????????????????????????????? | | ????????????????????????????????????????????? | | " " ????????????????????????????????????????????? | | """ ????????????????????????????????????????????? | | ""?????????????????????????"" ???????????????????? | | ?????????????????????????#"" ???????????????????? | | ?????????????????????????""% ????????????????????? | | ????????????????????????? ????????????????????? | | ????????????????????????? ????????????????????? | | ???????????????????????## ????????????????????? | | ???????????????????????# ?????????????????????? | | ???????????????????????# % ?????????????????????? | | ##?????????????????????# ?????????????????????? | | ##???????????????????## #???####??????????????? | | ###????????????##??## #### ##?????????????? | | #????????????# $?# #?????????????? | | #????????????#$ "##< ##????????????? | | #?????????????# & # ????????? | | ##?????????????????#R ????????? | | ##??????????????????# ????????? | | #???????????????????## ## #### ????????? | | #????????????????????# @ #??? #???????????????? | | ##?###??????????????## ##????????????????????? | | ### #??????????????# #????? ???????????????? | | #??????????????## ##????? ?????????????? | | #?????????????### ##????? #?????????????? | | # ## ##????????????# #????? ##????????????? | | ##### #????????????## ##????# #????????????? | | ???# ##???#####?????# #???## #????????????? | | ???# #?### #?????# #??## #????????????# | | ???## ### #????## #?## #????????? #?# | | ???# ## ###?## #?# #??????? | | ???## ## ### #### #?????????? ? | | ??## X ##?# #??????????? # | | ### ## ##??# #???????????? | | # ! ### ##### ##??????????? | | ###### ## ## ###?????????? | | ##### [ ######?????? | | ## ## [ ##??????? | | ######## #" ## ##???### | | ???????## ### ##### ## ##### ###?# | | ????##### #?## ##??## ####???## #?# | | #?### # #??## ##???# ##??????## [ ### | | ### ##### ####### ##??????# ## | | # # # ### ## ##?????## ## | | # * # %##?????##### | +----------------------------------------------------+ Best States ------------- Heat Dissipation 25 Energy Generation 15 Energy Capacity 250 Matter Stores 300 Matter Capacity 300 Sight Range 16 Robot Scan Range 20 Terrain Scan Density 10 Evasion (%) 55 Item Schematics ----------------- None Robot Schematics ------------------ None Fabricated ------------ Nothing Repaired ---------- Nothing Alien Tech Used ----------------- None Achievements -------------- None Challenges ------------ None Game ------ Seed TrackerAssembledFilter Manual? 0 Play Time 00:13:52 Cumulative 20.8 hours Start 2025.08.29 @ 10:17:39 End 2025.08.29 @ 10:28:33 Sessions 1 Manual Loads 0 Difficulty Rogue Special Mode None Game No. 24 Rogue 24 Adventurer 0 Explorer 0 Win Type - Total 0 Types 0/0/0/0/0/0/0/0/0/0 Lore% 31 Gallery% 28 Achievement% 30 Wizard Run 0 Options --------- Layout 1 ASCII 0 Keyboard 0 Movement Numpad Keybinds 0 Fullscreen 1 Font 32/SmallcapsGlow Map View 50x35 Zoom Use 0% Tactical HUD 0 Map Filters NONE Filters NONE Steam 1 RUN: 8856d983-b0c6-43b3-ab7d-050561f95561